bitfinex/quotes_BTCUSD_20220218
["timestamp","ask_amount","ask_price","bid_price","bid_amount"]
[1645158480899,0.015,40765.0,40764.0,0.24649745]
[1645158482297,0.193946,40767.0,40764.0,0.24649745]
[1645158483998,0.188946,40767.0,40764.0,0.24649745]
[1645158484240,0.186546,40767.0,40764.0,0.24649745]
[1645158485043,0.186546,40767.0,40764.0,0.24749745]
[1645158486439,0.186546,40767.0,40764.0,0.24649745]
[1645158486840,0.122702,40766.0,40764.0,0.24649745]
[1645158487740,0.064848,40767.0,40764.0,0.24649745]
[1645158488389,0.063848,40767.0,40764.0,0.24649745]
[1645158488787,0.125197,40767.0,40764.0,0.24649745]
[1645158488987,0.43739858,40767.0,40764.0,0.24649745]
[1645158489186,0.43739858,40767.0,40764.0,0.24749745]
[1645158489386,0.49874758,40767.0,40764.0,0.24749745]
[1645158489588,0.43739858,40767.0,40764.0,0.24749745]
[1645158489787,0.061351,40766.0,40764.0,0.24749745]
[1645158490387,0.061351,40766.0,40765.0,0.00088206]
[1645158495144,0.063351,40766.0,40765.0,0.00088206]
[1645158495593,0.063351,40766.0,40764.0,0.24824787]
[1645158496395,0.061351,40766.0,40764.0,0.24824787]
[1645158497095,0.063351,40766.0,40764.0,0.24824787]
[1645158498696,0.063351,40766.0,40764.0,0.24971381]
[1645158500140,0.063351,40766.0,40764.0,0.24824787]
[1645158500342,0.124702,40766.0,40764.0,0.24737951]
[1645158500543,0.122702,40766.0,40764.0,0.24737951]
[1645158501144,0.123702,40766.0,40764.0,0.24737951]
[1645158501944,0.062351,40766.0,40765.0,0.00146594]
[1645158502544,0.061351,40766.0,40765.0,0.00146594]
[1645158503993,0.061351,40766.0,40764.0,0.24737951]
[1645158504192,0.122703,40766.0,40764.0,0.24737951]
[1645158505094,0.124703,40766.0,40764.0,0.24737951]
[1645158505493,0.124703,40766.0,40765.0,0.00119774]
[1645158505697,0.063351,40766.0,40765.0,0.00119774]
[1645158506094,0.063351,40766.0,40765.0,0.00109479]
[1645158506494,0.061351,40766.0,40765.0,0.00109479]
[1645158507741,0.67891666,40767.0,40765.0,0.00109479]
[1645158509042,0.67991666,40767.0,40765.0,0.00109479]
[1645158510242,0.122706,40766.0,40764.0,0.24788624]
[1645158511088,0.124706,40766.0,40764.0,0.24788624]
[1645158513691,0.21428522,40765.0,40764.0,0.24788624]
[1645158517144,0.21428522,40765.0,40764.0,0.24888624]
[1645158517445,0.061353,40766.0,40765.0,0.34356265]
[1645158520490,0.061353,40766.0,40765.0,0.34495144]
[1645158523244,0.063353,40766.0,40765.0,0.34495144]
[1645158525147,0.065353,40766.0,40765.0,0.34495144]
[1645158525593,0.061353,40766.0,40765.0,0.34495144]
[1645158527095,0.063353,40766.0,40765.0,0.34495144]
[1645158528497,0.061353,40766.0,40765.0,0.34495144]
[1645158529143,0.063353,40766.0,40765.0,0.34495144]
[1645158531543,0.37708542,40766.0,40765.0,0.34495144]
[1645158532345,0.063353,40766.0,40765.0,0.34495144]
[1645158532543,0.061353,40766.0,40765.0,0.34495144]
[1645158535196,0.063353,40766.0,40765.0,0.34495144]
[1645158537140,0.061353,40766.0,40765.0,0.34495144]
[1645158539147,0.062353,40766.0,40765.0,0.34495144]
[1645158540591,0.061353,40766.0,40765.0,0.34495144]
[1645158541290,0.063353,40766.0,40765.0,0.34495144]
[1645158541492,0.063353,40766.0,40765.0,0.34487587]
[1645158543191,0.061353,40766.0,40765.0,0.34487587]
[1645158543992,0.061353,40766.0,40765.0,0.54284725]
[1645158544246,0.283948,40767.0,40765.0,0.54284725]
[1645158544547,0.59767105,40767.0,40765.0,0.54284725]
[1645158545348,0.72036605,40767.0,40765.0,0.54284725]
[1645158546750,0.72027394,40767.0,40765.0,0.54284725]
[1645158547151,0.72227394,40767.0,40765.0,0.54284725]
[1645158549194,0.72027394,40767.0,40765.0,0.54284725]
[1645158549396,0.40655089,40767.0,40765.0,0.54284725]
[1645158549596,0.72027394,40767.0,40765.0,0.54284725]
[1645158549795,0.40655089,40767.0,40765.0,0.54284725]
[1645158550197,0.40655089,40767.0,40765.0,0.34487587]
[1645158553661,0.28385589,40767.0,40765.0,0.34487587]
[1645158554662,0.65892694,40767.0,40765.0,0.34487587]
[1645158555166,0.72227494,40767.0,40765.0,0.34487587]
[1645158555593,0.66841905,40767.0,40766.0,0.00146594]
[1645158556194,0.66841905,40767.0,40765.0,0.34487587]
[1645158558295,0.66641905,40767.0,40765.0,0.34487587]
[1645158559445,0.66641905,40767.0,40765.0,0.34634181]
[1645158559846,0.66641905,40767.0,40765.0,0.34487587]
[1645158559847,0.61372305,40766.0,40765.0,0.34487587]
[1645158560047,0.3,40766.0,40765.0,0.34487587]
[1645158561046,0.352696,40767.0,40765.0,0.34487587]
[1645158561247,0.66642397,40767.0,40765.0,0.34487587]
[1645158561446,0.31372797,40766.0,40765.0,0.34487587]
[1645158561846,0.352696,40767.0,40765.0,0.34487587]
[1645158561847,0.54372797,40767.0,40765.0,0.34487587]
[1645158562149,0.54372797,40767.0,40765.0,0.34477781]
[1645158562547,0.22989284,40767.0,40765.0,0.34477781]
[1645158562750,0.54362081,40767.0,40765.0,0.34477781]
[1645158564401,0.60497081,40767.0,40765.0,0.34477781]
[1645158565104,0.66631881,40767.0,40765.0,0.34477781]
[1645158565306,0.66831881,40767.0,40765.0,0.34477781]
[1645158566102,0.54562081,40767.0,40765.0,0.34477781]
[1645158566749,0.54362081,40767.0,40765.0,0.34477781]
[1645158569251,0.54562081,40767.0,40765.0,0.34477781]
[1645158570499,0.60697281,40767.0,40765.0,0.34477781]
[1645158571094,0.60497281,40767.0,40765.0,0.34477781]
[1645158571295,0.66832381,40767.0,40765.0,0.34477781]
[1645158572699,0.19092002,40766.0,40765.0,0.34477781]
[1645158573104,0.80464799,40766.0,40765.0,0.34477781]
[1645158573300,0.80664799,40766.0,40765.0,0.34477781]
[1645158573500,0.49292002,40766.0,40765.0,0.34477781]
[1645158573700,0.19292002,40766.0,40765.0,0.34477781]
[1645158574157,0.20273902,40766.0,40765.0,0.34477781]
[1645158574759,0.20073902,40766.0,40765.0,0.34477781]
[1645158574957,0.19092002,40766.0,40765.0,0.34477781]
[1645158575560,0.50465055,40766.0,40765.0,0.34477781]
[1645158576162,0.19092002,40766.0,40765.0,0.34477781]
[1645158577364,0.19292002,40766.0,40765.0,0.34477781]
[1645158577997,0.20273902,40766.0,40765.0,0.34477781]
[1645158578197,0.19292002,40766.0,40765.0,0.34477781]
[1645158578997,0.49292002,40766.0,40765.0,0.34477781]
[1645158579599,0.19292002,40766.0,40765.0,0.34477781]
[1645158579798,0.002,40766.0,40765.0,0.64477781]
[1645158580002,0.002,40766.0,40765.0,0.34477781]
[1645158580602,0.54363397,40767.0,40765.0,0.34477781]
[1645158580797,0.54363397,40767.0,40765.0,0.40611969]
[1645158581003,0.54363397,40767.0,40765.0,0.34477781]
[1645158581400,0.54463397,40767.0,40765.0,0.34477781]
[1645158584053,0.31374113,40766.0,40765.0,0.34477781]
[1645158584452,0.54463397,40767.0,40765.0,0.34471443]
[1645158585053,0.23089284,40767.0,40765.0,0.34471443]
[1645158585403,0.54463397,40767.0,40765.0,0.34471443]
[1645158585596,0.23089284,40767.0,40765.0,0.34471443]
[1645158586598,0.54363397,40767.0,40765.0,0.34471443]
[1645158586999,0.26143403,40766.0,40765.0,0.34471443]
[1645158587201,0.22989284,40767.0,40765.0,0.34471443]
[1645158587398,0.23089284,40767.0,40765.0,0.34471443]
[1645158587600,0.26143345,40766.0,40765.0,0.34471443]
[1645158587800,0.23089284,40767.0,40765.0,0.34471443]
[1645158588000,0.26143587,40766.0,40765.0,0.34471443]
[1645158588200,0.23089284,40767.0,40765.0,0.34471443]
[1645158588400,0.26143596,40766.0,40765.0,0.34471443]
[1645158588600,0.23089284,40767.0,40765.0,0.34471443]
[1645158588903,0.54463397,40767.0,40765.0,0.34471443]
[1645158589353,0.23189284,40767.0,40765.0,0.34471443]
[1645158589652,0.54563397,40767.0,40765.0,0.34471443]
[1645158590753,0.23189284,40767.0,40765.0,0.34471443]
[1645158590954,0.60698197,40767.0,40765.0,0.34471443]
[1645158591353,0.60798197,40767.0,40765.0,0.34471443]
[1645158592155,0.29124084,40767.0,40765.0,0.34471443]
[1645158592556,0.60498197,40767.0,40765.0,0.34471443]
[1645158593403,0.60598197,40767.0,40765.0,0.34471443]
[1645158594003,0.29224084,40767.0,40765.0,0.34471443]
[1645158594207,0.23089284,40767.0,40765.0,0.34471443]
[1645158594403,0.54463397,40767.0,40765.0,0.34471443]
[1645158595402,0.54363397,40767.0,40765.0,0.34471443]
[1645158596305,0.22989284,40767.0,40765.0,0.34471443]
[1645158596505,0.31374113,40766.0,40765.0,0.34471443]
[1645158596752,0.27693817,40766.0,40765.0,0.34471443]
[1645158596950,0.64237678,40766.0,40765.0,0.34471443]
[1645158597149,0.65219478,40766.0,40765.0,0.34471443]
[1645158597350,0.8911807,40766.0,40765.0,0.34471443]
[1645158597551,1.08188609,40766.0,40765.0,0.34471443]
[1645158597749,0.71644748,40766.0,40765.0,0.34471443]
[1645158597950,0.71644748,40766.0,40765.0,0.15417181]
[1645158598152,1.50558889,40766.0,40765.0,0.15417181]
[1645158598351,1.50558889,40766.0,40764.0,0.24649745]
[1645158598352,0.95,40765.0,40764.0,0.24649745]
[1645158598554,1.4840758,40765.0,40764.0,0.24649745]
[1645158599355,1.5860758,40765.0,40764.0,0.24649745]
[1645158599751,1.4860758,40765.0,40764.0,0.24649745]
[1645158601003,1.5860758,40765.0,40764.0,0.24649745]
[1645158601604,1.4860758,40765.0,40764.0,0.24649745]
[1645158603407,1.4840758,40765.0,40764.0,0.24649745]
[1645158604656,1.4790758,40765.0,40764.0,0.24649745]
[1645158605053,1.4888958,40765.0,40764.0,0.24649745]
[1645158605452,1.4790758,40765.0,40764.0,0.24649745]
[1645158607554,0.122731,40763.0,40760.0,0.00027091]
[1645158607754,0.31364823,40762.0,40759.0,0.00021838]
[1645158608000,0.26137132,40760.0,40759.0,0.00021838]
[1645158608601,0.06136914,40759.0,40754.0,0.00027091]
[1645158608801,0.32274046,40759.0,40757.0,0.00021838]
[1645158609201,0.52752802,40758.0,40757.0,0.00021838]
[1645158609403,0.52752802,40758.0,40757.0,0.00048929]
[1645158609805,0.58889802,40758.0,40757.0,0.00027091]
[1645158610003,0.12274,40757.0,40756.0,0.07256588]
[1645158610202,0.12274,40757.0,40756.0,0.07283679]
[1645158611307,0.95,40756.0,40750.0,0.0011]
[1645158611513,1.21136313,40755.0,40747.0,0.03931269]
[1645158611762,0.32275413,40751.0,40747.0,0.03931269]
[1645158611960,0.26136313,40749.0,40747.0,0.03931269]
[1645158612162,0.25375263,40747.0,40745.0,0.03931269]
[1645158612470,0.31036313,40746.0,40745.0,0.03931269]
[1645158612660,0.95,40745.0,40742.0,0.03931269]
[1645158612860,0.049,40744.0,40742.0,0.03931269]
[1645158613060,0.061404,40743.0,40742.0,0.03931269]
[1645158613259,0.45893806,40743.0,40742.0,0.03931269]
[1645158613460,0.45893806,40743.0,40739.0,0.17931269]
[1645158613461,0.95,40742.0,40739.0,0.17931269]
[1645158613665,0.22839526,40740.0,40739.0,0.17931269]
[1645158613864,0.80872149,40740.0,40739.0,0.17931269]
[1645158614065,0.87013049,40740.0,40739.0,0.17931269]
[1645158614264,0.97013049,40740.0,40739.0,0.17931269]
[1645158615511,0.97113049,40740.0,40739.0,0.17931269]
[1645158616709,0.97995749,40740.0,40739.0,0.16138143]
[1645158617111,0.97013049,40740.0,40739.0,0.16138143]
[1645158620355,0.9701912,40740.0,40739.0,0.16138143]
[1645158620553,0.9800182,40740.0,40739.0,0.16138143]
[1645158621354,0.9701912,40740.0,40739.0,0.16138143]
[1645158622258,0.9851912,40740.0,40739.0,0.16138143]
[1645158623101,1.2351912,40740.0,40739.0,0.16138143]
[1645158624602,1.2450182,40740.0,40739.0,0.16138143]
[1645158624804,1.2351912,40740.0,40739.0,0.16138143]
[1645158625410,1.2361912,40740.0,40739.0,0.16138143]
[1645158627358,1.2351912,40740.0,40739.0,0.16138143]
[1645158627559,1.2361912,40740.0,40739.0,0.16138143]
[1645158628260,0.95,40739.0,40737.0,0.00023209]
[1645158628460,0.410417,40738.0,40737.0,0.00023209]
[1645158628659,0.510417,40738.0,40737.0,0.00023209]
[1645158628861,0.610417,40738.0,40737.0,0.00023209]
[1645158629059,0.061419,40735.0,40724.0,0.00026965]
[1645158629258,0.061419,40735.0,40723.0,0.0011]
[1645158629259,0.26081374,40725.0,40723.0,0.0011]
[1645158629460,0.12283705,40725.0,40724.0,0.00146594]
[1645158629659,0.06141805,40725.0,40724.0,0.00146594]
[1645158629860,0.06141805,40725.0,40720.0,0.00026965]
[1645158630063,0.061417,40724.0,40721.0,0.00026965]
[1645158630261,0.061417,40724.0,40719.0,0.3]
[1645158630508,0.06131759,40724.0,40720.0,0.00023214]
[1645158630699,0.06131759,40724.0,40720.0,0.00050179]
[1645158630901,0.12273318,40724.0,40720.0,0.00023214]
[1645158631099,0.12273318,40724.0,40720.0,0.00050179]
[1645158631100,0.061416,40723.0,40720.0,0.00050179]
[1645158631300,0.061416,40723.0,40720.0,0.00023214]
[1645158631499,0.061416,40723.0,40720.0,0.00026965]
[1645158631699,0.061416,40723.0,40719.0,0.30023215]
[1645158631900,0.061416,40723.0,40719.0,0.00023215]
[1645158632602,0.061416,40723.0,40718.0,0.00026965]
[1645158632603,0.122831,40723.0,40718.0,0.00026965]
[1645158632802,0.122831,40723.0,40719.0,0.00023215]
[1645158633603,0.184247,40723.0,40719.0,0.00023215]
[1645158633804,0.061422,40721.0,40718.0,0.00026965]
[1645158634003,0.061422,40721.0,40719.0,0.00023215]
[1645158634660,0.122843,40721.0,40719.0,0.00023215]
[1645158634861,0.061422,40720.0,40719.0,0.00023215]
[1645158635062,0.061422,40720.0,40718.0,0.00026965]
[1645158635262,0.061422,40720.0,40718.0,0.00021716]
[1645158636360,0.061422,40720.0,40717.0,0.00026965]
[1645158636562,0.061422,40720.0,40717.0,0.00021716]
[1645158636763,0.061422,40720.0,40717.0,0.00048681]
[1645158636970,0.061422,40720.0,40717.0,0.00021716]
[1645158637165,0.061422,40720.0,40717.0,0.00048681]
[1645158637366,0.061422,40720.0,40717.0,0.00021716]
[1645158637566,0.061417,40719.0,40718.0,0.332047]
[1645158637767,0.061417,40719.0,40717.0,0.332047]
[1645158638005,0.061417,40719.0,40717.0,0.33231665]
[1645158638206,0.062418,40720.0,40717.0,0.33231665]
[1645158638401,0.062418,40720.0,40717.0,0.00026965]
[1645158638601,0.062418,40720.0,40717.0,0.33231665]
[1645158638803,0.062418,40720.0,40719.0,0.0008]
[1645158639001,0.061418,40720.0,40719.0,0.0008]
[1645158639603,0.123834,40720.0,40719.0,0.0008]
[1645158641408,0.122834,40720.0,40719.0,0.0008]
[1645158641671,0.123834,40720.0,40719.0,0.0008]
[1645158645423,0.122834,40720.0,40719.0,0.0008]
[1645158648916,0.12283523,40721.0,40719.0,0.332847]
[1645158649162,0.372842,40723.0,40720.0,0.681047]
[1645158649163,0.25,40723.0,40720.0,0.681047]
[1645158649460,0.25,40723.0,40721.0,0.332047]
[1645158649661,0.25,40723.0,40721.0,0.48093065]
[1645158649859,0.25,40723.0,40722.0,0.25829549]
[1645158650061,0.25,40723.0,40722.0,0.87298689]
[1645158650462,0.25,40723.0,40722.0,0.92298689]
[1645158651267,0.25,40723.0,40722.0,1.22298689]
[1645158651663,0.25,40723.0,40722.0,1.22498689]
[1645158655409,0.25,40723.0,40722.0,1.22298689]
[1645158655608,0.25,40723.0,40722.0,1.22498689]
[1645158657652,0.25,40723.0,40722.0,1.22698689]
[1645158657853,0.25,40723.0,40722.0,1.22498689]
[1645158658052,0.25,40723.0,40722.0,1.22298689]
[1645158658353,0.26274441,40737.0,40722.0,1.22298689]
[1645158658354,0.26274441,40737.0,40726.0,0.061394]
[1645158658554,0.26274441,40737.0,40730.0,0.122786]
[1645158658753,0.26274441,40737.0,40730.0,0.061393]
[1645158658956,0.26274441,40737.0,40730.0,0.06166265]
[1645158659153,0.32610565,40739.0,40731.0,0.34990218]
[1645158659352,0.32610565,40739.0,40731.0,0.3504177]
[1645158659554,0.32610565,40739.0,40732.0,0.18960638]
[1645158659854,0.32610565,40739.0,40732.0,0.18987603]
[1645158660254,0.009825,40739.0,40732.0,0.18987603]
[1645158660498,0.009825,40739.0,40733.0,0.00024587]
[1645158660700,0.009825,40739.0,40733.0,0.06190852]
[1645158660900,0.009825,40739.0,40733.0,0.06163887]
[1645158661103,0.009825,40739.0,40733.0,0.06190852]
[1645158661398,0.009825,40739.0,40734.0,0.632047]
[1645158661606,0.009825,40739.0,40735.0,0.061389]
[1645158661799,0.009825,40739.0,40736.0,0.332047]
[1645158662099,0.001,40744.0,40739.0,0.01805471]
[1645158662301,0.001,40744.0,40741.0,0.2001371]
[1645158662904,0.001,40744.0,40740.0,0.06162884]
[1645158663203,0.2773382,40745.0,40740.0,0.00024584]
[1645158665154,0.2773382,40745.0,40739.0,0.01805471]
[1645158665355,0.2773382,40745.0,40740.0,0.00024584]
[1645158666356,0.22311272,40748.0,40739.0,0.01805471]
[1645158666556,0.22311272,40748.0,40740.0,0.00024584]
[1645158667357,0.23293572,40748.0,40740.0,0.00024584]
[1645158667658,0.27934449,40747.0,40742.0,0.00024584]
[1645158667917,0.23293572,40748.0,40742.0,0.00024584]
[1645158668706,0.23293572,40748.0,40739.0,0.01805471]
[1645158668905,0.54475449,40748.0,40743.0,0.00024583]
[1645158669108,0.48293572,40748.0,40743.0,0.00024583]
[1645158669707,0.48393572,40748.0,40743.0,0.00024583]
[1645158669906,0.48393572,40748.0,40739.0,0.01805471]
[1645158670105,0.48393572,40748.0,40743.0,0.00024583]
[1645158670505,6.107e-05,40747.0,40743.0,0.00024583]
[1645158671105,6.107e-05,40747.0,40739.0,0.01805471]
[1645158671306,6.107e-05,40747.0,40743.0,0.00024583]
[1645158671751,0.00106107,40747.0,40743.0,0.00024583]
[1645158672153,0.00106107,40747.0,40743.0,0.24154381]
[1645158672354,0.00106107,40747.0,40743.0,0.24129798]
[1645158672553,0.00106107,40747.0,40743.0,0.24154381]
[1645158672953,0.25653434,40746.0,40743.0,0.24154381]
[1645158673453,0.25653434,40746.0,40743.0,0.24129798]
[1645158673654,0.25653434,40746.0,40743.0,0.24229798]
[1645158674954,0.25653434,40746.0,40743.0,0.24129798]
[1645158675154,0.25659536,40746.0,40743.0,0.24129798]
[1645158676019,0.25659536,40746.0,40740.0,0.0011]
[1645158676221,6.102e-05,40746.0,40742.0,0.00024584]
[1645158677023,6.102e-05,40746.0,40743.0,0.25016932]
[1645158677622,6.102e-05,40746.0,40743.0,0.25116932]
[1645158678824,6.102e-05,40746.0,40743.0,0.31254732]
[1645158679026,6.102e-05,40746.0,40743.0,0.25016932]
[1645158679654,0.00206102,40746.0,40743.0,0.25016932]
[1645158681055,6.102e-05,40746.0,40743.0,0.25016932]
[1645158683802,0.00206102,40746.0,40743.0,0.25016932]
[1645158685004,6.102e-05,40746.0,40743.0,0.25016932]
[1645158685606,0.00106102,40746.0,40743.0,0.25016932]
[1645158687053,0.06244702,40746.0,40743.0,0.25016932]
[1645158687254,0.06144702,40746.0,40743.0,0.25016932]
[1645158687754,0.06244702,40746.0,40743.0,0.25016932]
[1645158688655,0.00106102,40746.0,40743.0,0.25016932]
[1645158689154,6.102e-05,40746.0,40743.0,0.25016932]
[1645158689655,0.00206102,40746.0,40743.0,0.25016932]
[1645158691113,6.102e-05,40746.0,40743.0,0.25016932]
[1645158691811,0.00206102,40746.0,40743.0,0.25016932]
[1645158693611,0.00206102,40746.0,40743.0,0.25116932]
[1645158693612,6.102e-05,40746.0,40743.0,0.25116932]
[1645158695063,6.102e-05,40746.0,40743.0,0.25016932]
[1645158695267,0.7846344,40748.0,40743.0,0.25016932]
[1645158695268,0.78469537,40748.0,40743.0,0.25016932]
[1645158695667,0.78469537,40748.0,40743.0,0.25116932]
[1645158696768,0.78469537,40748.0,40743.0,0.25141515]
[1645158697167,0.78469537,40748.0,40743.0,0.25041515]
[1645158697369,0.25006097,40748.0,40744.0,0.3]
[1645158697571,2.0,40750.0,40748.0,0.30800784]
[1645158697774,2.0,40750.0,40749.0,0.381047]
[1645158698008,2.0,40750.0,40749.0,0.110365]
[1645158698209,2.0,40750.0,40749.0,0.442412]
[1645158699908,2.0,40750.0,40749.0,0.443412]
[1645158701312,2.0,40750.0,40749.0,0.743412]
[1645158701772,2.0,40750.0,40749.0,0.442412]
[1645158702369,2.25,40750.0,40749.0,0.442412]
[1645158703769,2.251,40750.0,40749.0,0.442412]
[1645158704172,2.251,40750.0,40749.0,0.393412]
[1645158705607,2.25,40750.0,40749.0,0.393412]
[1645158705804,2.251,40750.0,40749.0,0.393412]
[1645158707605,2.25,40750.0,40749.0,0.393412]
[1645158707806,2.25,40750.0,40749.0,0.394412]
[1645158709654,2.25,40750.0,40749.0,0.393412]
[1645158709859,2.25,40750.0,40749.0,0.061365]
[1645158710056,2.25,40750.0,40748.0,0.30800784]
[1645158710456,2.25,40750.0,40749.0,0.332047]
[1645158711255,2.25,40750.0,40748.0,0.30800784]
[1645158711456,2.25,40750.0,40749.0,0.332047]
[1645158711859,2.25,40750.0,40749.0,0.061369]
[1645158711860,2.251,40750.0,40749.0,0.061369]
[1645158712060,2.251,40750.0,40749.0,0.332047]
[1645158712458,2.251,40750.0,40748.0,0.30800784]
[1645158713708,2.25,40750.0,40748.0,0.37037884]
[1645158714206,2.25,40750.0,40748.0,0.30900784]
[1645158714207,0.3,40749.0,40748.0,0.30900784]
[1645158715206,0.56843015,40749.0,40748.0,0.30900784]
[1645158715405,0.3,40749.0,40748.0,0.30900784]
[1645158715606,0.3,40749.0,40748.0,0.30800784]
[1645158715805,0.302,40749.0,40748.0,0.30800784]
[1645158716307,0.306823,40749.0,40748.0,0.30800784]
[1645158716657,0.297,40749.0,40748.0,0.30800784]
[1645158717057,0.295,40749.0,40748.0,0.30800784]
[1645158717458,0.56014884,40749.0,40748.0,0.30800784]
[1645158720160,0.56997284,40749.0,40748.0,0.30800784]
[1645158720606,0.56014884,40749.0,40748.0,0.30800784]
[1645158723611,0.60914884,40749.0,40748.0,0.30800784]
[1645158724259,0.61897184,40749.0,40748.0,0.30800784]
[1645158724856,0.60914884,40749.0,40748.0,0.30800784]
[1645158726057,0.31414884,40749.0,40748.0,0.30800784]
[1645158726757,0.049,40749.0,40748.0,0.30800784]
[1645158727758,0.2664121,40749.0,40748.0,0.30800784]
[1645158728010,0.2762351,40749.0,40748.0,0.30800784]
[1645158728410,0.2664121,40749.0,40748.0,0.30800784]
[1645158729911,0.2684121,40749.0,40748.0,0.30800784]
[1645158731313,0.57152917,40749.0,40748.0,0.30800784]
[1645158731663,0.55970617,40749.0,40748.0,0.30800784]
[1645158731860,0.2684121,40749.0,40748.0,0.30800784]
[1645158734664,0.56206661,40749.0,40748.0,0.30800784]
[1645158734864,0.2684121,40749.0,40748.0,0.30800784]
[1645158735065,0.3282351,40749.0,40748.0,0.30800784]
[1645158735508,0.3184121,40749.0,40748.0,0.30800784]
[1645158735710,0.3164121,40749.0,40748.0,0.30800784]
[1645158736308,0.3664121,40749.0,40748.0,0.30800784]
[1645158736708,0.3164121,40749.0,40748.0,0.30790768]
[1645158739866,0.2664121,40749.0,40748.0,0.30790768]
[1645158740162,0.049,40749.0,40748.0,0.30790768]
[1645158741162,2.54553749,40750.0,40748.0,0.30790768]
[1645158742264,2.55536149,40750.0,40748.0,0.30790768]
[1645158742464,2.50536149,40750.0,40748.0,0.30790768]
[1645158742668,2.43414849,40750.0,40748.0,0.30790768]
[1645158743509,2.31138349,40750.0,40748.0,0.30790768]
[1645158743909,2.31138349,40750.0,40748.0,0.30890768]
[1645158744310,2.25,40750.0,40748.0,0.30790768]
[1645158745813,2.25,40750.0,40748.0,0.30890768]
[1645158746412,2.259823,40750.0,40748.0,0.30890768]
[1645158746661,2.25,40750.0,40748.0,0.30890768]
[1645158746860,2.311374,40750.0,40748.0,0.30890768]
[1645158747763,2.311374,40750.0,40748.0,0.30790768]
[1645158748161,2.38499375,40750.0,40748.0,0.30790768]
[1645158749864,2.32361975,40750.0,40748.0,0.30890768]
[1645158750924,2.32361975,40750.0,40749.0,0.3]
[1645158751125,1.76557972,40750.0,40749.0,0.3]
[1645158751325,1.76557972,40750.0,40749.0,0.632047]
[1645158751925,1.76657972,40750.0,40749.0,0.632047]
[1645158753726,1.76557972,40750.0,40749.0,0.632047]
[1645158753927,1.76557972,40750.0,40749.0,0.634047]
[1645158754662,1.69195997,40750.0,40749.0,0.634047]
[1645158756665,1.69195997,40750.0,40749.0,0.713527]
[1645158757267,1.69195997,40750.0,40749.0,0.861527]
[1645158757268,0.53526079,40750.0,40749.0,0.861527]
[1645158757471,0.0021,40760.0,40750.0,0.95]
[1645158757667,0.0021,40760.0,40759.0,0.3]
[1645158757922,0.0021,40760.0,40759.0,0.632047]
[1645158758813,0.0021,40760.0,40759.0,0.719917]
[1645158760124,0.0021,40760.0,40759.0,0.419917]
[1645158761120,0.00177088,40760.0,40759.0,0.419917]
[1645158761964,0.00177088,40760.0,40759.0,0.421917]
[1645158762265,0.00177088,40760.0,40759.0,0.521917]
[1645158762668,0.00177088,40760.0,40759.0,0.18987]
[1645158762865,0.00177088,40760.0,40759.0,0.102]
[1645158763263,0.00177088,40760.0,40759.0,0.1]
[1645158763465,0.00177088,40760.0,40758.0,0.83134299]
[1645158763666,0.00177088,40760.0,40759.0,0.332047]
[1645158766012,0.00177088,40760.0,40759.0,0.334047]
[1645158767511,0.00177088,40760.0,40759.0,0.332047]
[1645158767916,0.00177088,40760.0,40759.0,0.334047]
[1645158769761,0.00177088,40760.0,40759.0,0.332047]
[1645158769961,0.00177088,40760.0,40759.0,0.384047]
[1645158770161,0.00177088,40760.0,40759.0,0.434047]
[1645158770564,0.25177088,40760.0,40759.0,0.434047]
[1645158771961,0.25177088,40760.0,40759.0,0.432047]
[1645158773417,0.25177088,40760.0,40759.0,0.71269289]
[1645158773915,0.25177088,40760.0,40759.0,0.71469289]
[1645158774415,0.25177088,40760.0,40759.0,0.71465828]
[1645158775415,0.25177088,40760.0,40759.0,0.434047]
[1645158775820,0.25177088,40760.0,40759.0,0.432047]
[1645158776016,0.25177088,40760.0,40759.0,0.434047]
[1645158777765,0.25177088,40760.0,40759.0,0.484047]
[1645158777966,0.25177088,40760.0,40759.0,0.533047]
[1645158778566,0.25177088,40760.0,40759.0,0.81382844]
[1645158779367,0.25177088,40760.0,40759.0,0.81182844]
[1645158779768,0.25177088,40760.0,40759.0,1.01182844]
[1645158779967,0.25177088,40760.0,40759.0,1.56292844]
[1645158780169,0.00232958,40765.0,40761.0,1.1]
[1645158780429,0.0021,40765.0,40762.0,0.865034]
[1645158780617,0.27049529,40777.0,40763.0,0.95]
[1645158780618,0.009818,40777.0,40763.0,0.95]
[1645158780922,0.009818,40777.0,40766.0,0.332047]
[1645158781117,0.009818,40777.0,40767.0,0.049]
[1645158781318,0.009818,40777.0,40774.0,0.061324]
[1645158781520,0.009818,40777.0,40774.0,0.47490409]
[1645158782019,0.009818,40777.0,40774.0,0.12364944]
[1645158782219,0.00011287,40778.0,40774.0,0.12364944]
[1645158782418,0.00011287,40778.0,40775.0,0.37935624]
[1645158782619,0.00011287,40778.0,40776.0,0.061328]
[1645158783020,0.0043,40782.0,40776.0,0.061328]
[1645158783220,0.00011287,40779.0,40776.0,0.061328]
[1645158783620,0.00011287,40779.0,40776.0,0.12265381]
[1645158784022,0.00011287,40779.0,40776.0,0.12365381]
[1645158784266,0.32778255,40782.0,40777.0,0.061327]
[1645158784565,0.00024475,40780.0,40777.0,0.061327]
[1645158785367,0.011916,40781.0,40777.0,0.061327]
[1645158785567,0.01214469,40781.0,40777.0,0.061327]
[1645158785972,0.01314469,40781.0,40777.0,0.061327]
[1645158786569,0.012916,40781.0,40777.0,0.061327]
[1645158786767,0.01314468,40781.0,40777.0,0.061327]
[1645158787368,0.01214468,40781.0,40777.0,0.122652]
[1645158787570,0.01214468,40781.0,40778.0,0.061323]
[1645158787772,0.01182639,40781.0,40778.0,0.061323]
[1645158788016,0.00705507,40781.0,40778.0,0.061323]
[1645158788723,0.00705507,40781.0,40779.0,0.061323]
[1645158788915,0.00682639,40781.0,40779.0,0.061323]
[1645158790117,0.00682639,40781.0,40779.0,0.062323]
[1645158791117,0.00682639,40781.0,40780.0,0.00104172]
[1645158792171,0.00682639,40781.0,40780.0,0.00204172]
[1645158793874,0.00682639,40781.0,40780.0,0.00104172]
[1645158794070,0.00782639,40781.0,40780.0,0.00104172]
[1645158796116,0.00145794,40782.0,40780.0,0.30204172]
[1645158796319,0.0011,40784.0,40781.0,1.34336114]
[1645158796320,0.00035794,40783.0,40781.0,1.34336114]
[1645158796521,0.00035794,40783.0,40782.0,0.332047]
[1645158796522,0.00022969,40783.0,40782.0,0.332047]
[1645158796717,0.00058763,40783.0,40782.0,0.332047]
[1645158796916,0.00022969,40783.0,40782.0,0.332047]
[1645158797117,0.00022969,40783.0,40782.0,0.2336155]